[Event "*** SCC Grand Prix: Titled Tuesday Blitz"]
[Site "Chess.com"]
[Date "2020.07.14"]
[Round "7"]
[White "onnoelgersma"]
[Black "maciek_92"]
[Result "0-1"]
[WhiteElo "2425"]
[BlackElo "2623"]
[TimeControl "180+1"]
[EndTime "11:20:34 PDT"]
[Termination "maciek_92 won by checkmate"]

1. e4 {[%clk 0:03:00.9]} 1... c6 {[%clk 0:03:00.2]} 2. d4 {[%clk 0:02:52.9]}
2... d5 {[%clk 0:03:00.2]} 3. e5 {[%clk 0:02:53.6]} 3... Bf5 {[%clk 0:02:59.3]}
4. Nf3 {[%clk 0:02:54.2]} 4... e6 {[%clk 0:02:58.2]} 5. Be2 {[%clk 0:02:54.8]}
5... h6 {[%clk 0:02:57.3]} 6. O-O {[%clk 0:02:54.8]} 6... Ne7 {[%clk 0:02:55.9]}
7. Nbd2 {[%clk 0:02:55.3]} 7... Nd7 {[%clk 0:02:46.9]} 8. Nb3 {[%clk 0:02:55.2]}
8... Nc8 {[%clk 0:02:39.6]} 9. a4 {[%clk 0:02:55.1]} 9... Be7 {[%clk 0:02:31.8]}
10. a5 {[%clk 0:02:54.7]} 10... a6 {[%clk 0:02:30.8]} 11. Bd2 {[%clk 0:02:53.1]}
11... Na7 {[%clk 0:02:17.4]} 12. Ne1 {[%clk 0:02:42]} 12... c5 {[%clk
0:02:11.6]} 13. dxc5 {[%clk 0:02:33.9]} 13... Nxe5 {[%clk 0:02:04.1]} 14. Nf3
{[%clk 0:02:23.1]} 14... Nxf3+ {[%clk 0:01:53.2]} 15. Bxf3 {[%clk 0:02:24]}
15... Bg6 {[%clk 0:01:51.8]} 16. Bc3 {[%clk 0:02:11.3]} 16... O-O {[%clk
0:01:51.3]} 17. Re1 {[%clk 0:02:11.2]} 17... Rc8 {[%clk 0:01:50.7]} 18. Bd4
{[%clk 0:02:03.3]} 18... Nc6 {[%clk 0:01:47.5]} 19. c3 {[%clk 0:02:03.5]} 19...
Re8 {[%clk 0:01:39.4]} 20. Qd2 {[%clk 0:01:53.3]} 20... Qc7 {[%clk 0:01:33.6]}
21. Be3 {[%clk 0:01:39.4]} 21... Ne5 {[%clk 0:01:01.9]} 22. Be2 {[%clk
0:01:10.9]} 22... Nc4 {[%clk 0:01:00.4]} 23. Bxc4 {[%clk 0:01:10.2]} 23... dxc4
{[%clk 0:01:00.5]} 24. Bf4 {[%clk 0:01:10.7]} 24... Qc6 {[%clk 0:00:57.2]} 25.
Nd4 {[%clk 0:01:11]} 25... Qxc5 {[%clk 0:00:56.6]} 26. Re5 {[%clk 0:01:11.7]}
26... Qa7 {[%clk 0:00:50.2]} 27. Rae1 {[%clk 0:01:05.4]} 27... Bf6 {[%clk
0:00:37.4]} 28. R5e2 {[%clk 0:01:04.1]} 28... Rc5 {[%clk 0:00:33.6]} 29. Be5
{[%clk 0:01:01.2]} 29... Bxe5 {[%clk 0:00:30.2]} 30. Rxe5 {[%clk 0:01:02.1]}
30... Rxe5 {[%clk 0:00:30.8]} 31. Rxe5 {[%clk 0:01:03]} 31... Qb8 {[%clk
0:00:31.2]} 32. Qe3 {[%clk 0:01:00.3]} 32... Rd8 {[%clk 0:00:29.1]} 33. f4
{[%clk 0:00:56.8]} 33... Qc7 {[%clk 0:00:21.7]} 34. g4 {[%clk 0:00:46.9]} 34...
Bd3 {[%clk 0:00:21.4]} 35. f5 {[%clk 0:00:42.6]} 35... exf5 {[%clk 0:00:21.1]}
36. gxf5 {[%clk 0:00:43.5]} 36... Kh7 {[%clk 0:00:16]} 37. Re7 {[%clk
0:00:42.2]} 37... Rd7 {[%clk 0:00:16.3]} 38. Re8 {[%clk 0:00:36.8]} 38... Qxa5
{[%clk 0:00:14.9]} 39. Kg2 {[%clk 0:00:25.1]} 39... Bxf5 {[%clk 0:00:13]} 40.
Re5 {[%clk 0:00:24.1]} 40... Rd5 {[%clk 0:00:13.5]} 41. Re8 {[%clk 0:00:10.8]}
41... Bg6 {[%clk 0:00:13.2]} 42. Qe7 {[%clk 0:00:08.9]} 42... Rg5+ {[%clk
0:00:12.4]} 43. Kf2 {[%clk 0:00:09.3]} 43... Qc5 {[%clk 0:00:08.9]} 44. Qd8
{[%clk 0:00:06.5]} 44... Bd3 {[%clk 0:00:07.5]} 45. Rh8+ {[%clk 0:00:05.9]}
45... Kg6 {[%clk 0:00:08]} 46. Qe8 {[%clk 0:00:04.5]} 46... Rf5+ {[%clk
0:00:07.4]} 47. Kg1 {[%clk 0:00:02.4]} 47... Rf1+ {[%clk 0:00:05.7]} 48. Kg2
{[%clk 0:00:02.8]} 48... Qg5+ {[%clk 0:00:06.6]} 49. Kh3 {[%clk 0:00:03.4]}
49... Rf3+ {[%clk 0:00:05.2]} 50. Nxf3 {[%clk 0:00:02.8]} 50... Bf5# {[%clk
0:00:05.9]} 0-1

[Event "*** SCC Grand Prix: Titled Tuesday Blitz"]
[Site "Chess.com"]
[Date "2020.07.14"]
[Round "7"]
[White "PattyCastillo"]
[Black "kidagent"]
[Result "0-1"]
[WhiteElo "1943"]
[BlackElo "2225"]
[TimeControl "180+1"]
[EndTime "11:20:38 PDT"]
[Termination "kidagent won on time"]

1. d4 {[%clk 0:03:00.9]} 1... d5 {[%clk 0:02:59.6]} 2. Nf3 {[%clk 0:02:58.8]}
2... Nf6 {[%clk 0:02:58.7]} 3. e3 {[%clk 0:02:58.7]} 3... Bf5 {[%clk 0:02:53.7]}
4. c4 {[%clk 0:02:57.9]} 4... c6 {[%clk 0:02:51.9]} 5. Qb3 {[%clk 0:02:51.4]}
5... Qb6 {[%clk 0:02:50.7]} 6. c5 {[%clk 0:02:50.8]} 6... Qxb3 {[%clk
0:02:47.7]} 7. axb3 {[%clk 0:02:51.7]} 7... Nbd7 {[%clk 0:02:41.2]} 8. b4 {[%clk
0:02:49.8]} 8... e5 {[%clk 0:02:30.3]} 9. Nc3 {[%clk 0:02:48.9]} 9... Be7 {[%clk
0:02:23]} 10. Be2 {[%clk 0:02:46.9]} 10... O-O {[%clk 0:02:21.1]} 11. O-O {[%clk
0:02:46]} 11... exd4 {[%clk 0:02:16.6]} 12. exd4 {[%clk 0:02:45.6]} 12... Rfe8
{[%clk 0:02:14.4]} 13. Bg5 {[%clk 0:02:39.4]} 13... h6 {[%clk 0:02:10.9]} 14.
Bh4 {[%clk 0:02:38.6]} 14... Ne4 {[%clk 0:02:05.1]} 15. Bxe7 {[%clk 0:02:36.4]}
15... Nxc3 {[%clk 0:01:58.7]} 16. bxc3 {[%clk 0:02:35.6]} 16... Rxe7 {[%clk
0:01:58.1]} 17. Rfe1 {[%clk 0:02:33.2]} 17... a6 {[%clk 0:01:49]} 18. h3 {[%clk
0:02:27.6]} 18... Rae8 {[%clk 0:01:45.1]} 19. Kf1 {[%clk 0:02:23.7]} 19... Nf6
{[%clk 0:01:32.2]} 20. Nh4 {[%clk 0:02:05.4]} 20... Be4 {[%clk 0:01:18.4]} 21.
f3 {[%clk 0:02:00.4]} 21... Bh7 {[%clk 0:01:16.4]} 22. g4 {[%clk 0:01:32]} 22...
Re3 {[%clk 0:01:09.9]} 23. Rac1 {[%clk 0:01:30.8]} 23... g5 {[%clk 0:00:51.7]}
24. Ng2 {[%clk 0:01:29.4]} 24... R3e7 {[%clk 0:00:49.5]} 25. Kf2 {[%clk
0:01:26.8]} 25... Nd7 {[%clk 0:00:40.8]} 26. Bf1 {[%clk 0:01:24.7]} 26... Nf8
{[%clk 0:00:35.8]} 27. Rxe7 {[%clk 0:01:22.6]} 27... Rxe7 {[%clk 0:00:36.7]} 28.
Ne3 {[%clk 0:01:14.4]} 28... Ne6 {[%clk 0:00:35.4]} 29. Re1 {[%clk 0:00:43.1]}
29... Nf4 {[%clk 0:00:34.3]} 30. Kg3 {[%clk 0:00:38.2]} 30... Kf8 {[%clk
0:00:32.1]} 31. h4 {[%clk 0:00:37.6]} 31... f6 {[%clk 0:00:26.9]} 32. hxg5
{[%clk 0:00:37.1]} 32... hxg5 {[%clk 0:00:26]} 33. Kf2 {[%clk 0:00:28.9]} 33...
Bd3 {[%clk 0:00:24.8]} 34. Ng2 {[%clk 0:00:13.3]} 34... Rxe1 {[%clk 0:00:12.2]}
35. Nxe1 {[%clk 0:00:12]} 35... Bxf1 {[%clk 0:00:10.9]} 36. Kxf1 {[%clk
0:00:12.3]} 36... Ke7 {[%clk 0:00:09.8]} 37. Kf2 {[%clk 0:00:12.5]} 37... Ke6
{[%clk 0:00:09.2]} 38. Ke3 {[%clk 0:00:13]} 38... Ng6 {[%clk 0:00:04.7]} 39. Nd3
{[%clk 0:00:12.7]} 39... f5 {[%clk 0:00:04.9]} 40. Nf2 {[%clk 0:00:11.3]} 40...
f4+ {[%clk 0:00:04.7]} 41. Kd3 {[%clk 0:00:11.4]} 41... Nh4 {[%clk 0:00:05.2]}
42. Ke2 {[%clk 0:00:10.5]} 42... Ng2 {[%clk 0:00:05.7]} 43. Nd3 {[%clk
0:00:09.4]} 43... Ne3 {[%clk 0:00:06.3]} 44. Ne5 {[%clk 0:00:07.6]} 44... Nc4
{[%clk 0:00:06.8]} 45. Ng6 {[%clk 0:00:04.3]} 45... Na3 {[%clk 0:00:05.7]} 46.
Nf8+ {[%clk 0:00:04.3]} 46... Ke7 {[%clk 0:00:05.2]} 47. Nh7 {[%clk 0:00:04]}
47... Nb1 {[%clk 0:00:03.2]} 48. Kd3 {[%clk 0:00:02.4]} 48... Na3 {[%clk
0:00:03.3]} 49. Nxg5 {[%clk 0:00:01.6]} 49... Nc4 {[%clk 0:00:03.6]} 50. Ne6
{[%clk 0:00:02]} 50... Kxe6 {[%clk 0:00:03.4]} 51. g5 {[%clk 0:00:02.4]} 51...
Kf5 {[%clk 0:00:03.6]} 0-1

[Event "*** SCC Grand Prix: Titled Tuesday Blitz"]
[Site "Chess.com"]
[Date "2020.07.14"]
[Round "7"]
[White "viditchess"]
[Black "rpragchess"]
[Result "0-1"]
[WhiteElo "2987"]
[BlackElo "2820"]
[TimeControl "180+1"]
[EndTime "11:20:41 PDT"]
[Termination "rpragchess won on time"]

1. d4 {[%clk 0:03:00.9]} 1... Nf6 {[%clk 0:02:59.7]} 2. c4 {[%clk 0:03:01.2]}
2... e6 {[%clk 0:03:00.1]} 3. Nf3 {[%clk 0:03:01.3]} 3... d5 {[%clk 0:03:00.3]}
4. g3 {[%clk 0:03:01.5]} 4... dxc4 {[%clk 0:02:59.4]} 5. Bg2 {[%clk 0:03:01.8]}
5... a6 {[%clk 0:02:59.8]} 6. O-O {[%clk 0:02:49.4]} 6... Nc6 {[%clk 0:02:59.5]}
7. Nbd2 {[%clk 0:02:45.8]} 7... Nxd4 {[%clk 0:02:25.5]} 8. Nxc4 {[%clk
0:02:45.9]} 8... Bc5 {[%clk 0:02:11.3]} 9. Nxd4 {[%clk 0:02:29.1]} 9... Bxd4
{[%clk 0:02:01]} 10. Qb3 {[%clk 0:02:22.2]} 10... Qe7 {[%clk 0:01:48.4]} 11. Rd1
{[%clk 0:02:12.1]} 11... Bc5 {[%clk 0:01:44.6]} 12. Bxb7 {[%clk 0:02:04]} 12...
Bxb7 {[%clk 0:01:45.5]} 13. Qxb7 {[%clk 0:02:04.9]} 13... O-O {[%clk 0:01:45.9]}
14. Bg5 {[%clk 0:01:49.9]} 14... Bxf2+ {[%clk 0:01:41.4]} 15. Kg2 {[%clk
0:01:42]} 15... Bc5 {[%clk 0:01:18.6]} 16. Qc6 {[%clk 0:01:37.4]} 16... Bd6
{[%clk 0:00:59.1]} 17. e4 {[%clk 0:01:15.6]} 17... h6 {[%clk 0:00:55.6]} 18. Be3
{[%clk 0:00:34.5]} 18... e5 {[%clk 0:00:20.3]} 19. Rd3 {[%clk 0:00:33.9]} 19...
Qe8 {[%clk 0:00:11.5]} 20. Qxe8 {[%clk 0:00:31.6]} 20... Nxe8 {[%clk 0:00:12.4]}
21. Rad1 {[%clk 0:00:24.5]} 21... f5 {[%clk 0:00:12.2]} 22. exf5 {[%clk
0:00:23.6]} 22... Rxf5 {[%clk 0:00:13.1]} 23. Rb3 {[%clk 0:00:22.5]} 23... Rf7
{[%clk 0:00:09.5]} 24. Rb7 {[%clk 0:00:22.1]} 24... Nf6 {[%clk 0:00:06.3]} 25.
Nxd6 {[%clk 0:00:19.5]} 25... cxd6 {[%clk 0:00:07.2]} 26. Rxf7 {[%clk
0:00:20.4]} 26... Kxf7 {[%clk 0:00:08.1]} 27. Rxd6 {[%clk 0:00:21.3]} 27... Rc8
{[%clk 0:00:09]} 28. Rd2 {[%clk 0:00:19.7]} 28... Ke6 {[%clk 0:00:09]} 29. Kf3
{[%clk 0:00:18.9]} 29... e4+ {[%clk 0:00:08.8]} 30. Ke2 {[%clk 0:00:19]} 30...
Nd5 {[%clk 0:00:09.3]} 31. Bd4 {[%clk 0:00:19.2]} 31... g5 {[%clk 0:00:09.4]}
32. Kd1 {[%clk 0:00:17.5]} 32... Kf5 {[%clk 0:00:07.5]} 33. Rf2+ {[%clk
0:00:17.6]} 33... Kg4 {[%clk 0:00:07.9]} 34. Kd2 {[%clk 0:00:14.2]} 34... Rc4
{[%clk 0:00:07.8]} 35. Be3 {[%clk 0:00:11.8]} 35... Rb4 {[%clk 0:00:04.6]} 36.
b3 {[%clk 0:00:11.8]} 36... Rb7 {[%clk 0:00:03.9]} 37. Bc5 {[%clk 0:00:06.7]}
37... Rc7 {[%clk 0:00:03.9]} 38. Bd4 {[%clk 0:00:06.8]} 38... Rd7 {[%clk
0:00:04.2]} 39. Ke2 {[%clk 0:00:07]} 39... a5 {[%clk 0:00:04.6]} 40. Rf1 {[%clk
0:00:06.1]} 40... Rc7 {[%clk 0:00:04.6]} 41. Kd2 {[%clk 0:00:05.7]} 41... Nb4
{[%clk 0:00:05.1]} 42. Ke3 {[%clk 0:00:02.5]} 42... Rd7 {[%clk 0:00:02.7]} 0-1

[Event "*** SCC Grand Prix: Titled Tuesday Blitz"]
[Site "Chess.com"]
[Date "2020.07.14"]
[Round "7"]
[White "marianokar"]
[Black "AlexOstrovskiy"]
[Result "1-0"]
[WhiteElo "2443"]
[BlackElo "2620"]
[TimeControl "180+1"]
[EndTime "11:20:42 PDT"]
[Termination "marianokar won by resignation"]

1. e4 {[%clk 0:03:00.9]} 1... c6 {[%clk 0:02:58.6]} 2. d4 {[%clk 0:02:59.5]}
2... d5 {[%clk 0:02:59.5]} 3. exd5 {[%clk 0:02:59.7]} 3... cxd5 {[%clk
0:03:00.4]} 4. Bd3 {[%clk 0:02:59.8]} 4... Nc6 {[%clk 0:02:59.3]} 5. c3 {[%clk
0:03:00.2]} 5... Qc7 {[%clk 0:02:58.2]} 6. Nf3 {[%clk 0:03:00.3]} 6... Bg4
{[%clk 0:02:55.5]} 7. O-O {[%clk 0:02:59.2]} 7... e6 {[%clk 0:02:54]} 8. h3
{[%clk 0:02:32.6]} 8... Bh5 {[%clk 0:02:52]} 9. Re1 {[%clk 0:02:26.9]} 9... Bd6
{[%clk 0:02:47.7]} 10. Nbd2 {[%clk 0:02:16.4]} 10... Nge7 {[%clk 0:02:35.3]} 11.
a4 {[%clk 0:02:02.3]} 11... O-O {[%clk 0:02:30.5]} 12. Nb3 {[%clk 0:01:52.7]}
12... Bg6 {[%clk 0:02:19]} 13. Bg5 {[%clk 0:01:46]} 13... Rae8 {[%clk
0:02:16.1]} 14. Bxe7 {[%clk 0:01:44.7]} 14... Rxe7 {[%clk 0:02:06.8]} 15. Bxg6
{[%clk 0:01:45.2]} 15... hxg6 {[%clk 0:02:07]} 16. Nc1 {[%clk 0:01:43.6]} 16...
f6 {[%clk 0:02:04.6]} 17. Nd3 {[%clk 0:01:22.4]} 17... e5 {[%clk 0:01:53.6]} 18.
Qb3 {[%clk 0:01:19.8]} 18... Qa5 {[%clk 0:01:30.2]} 19. Nc5 {[%clk 0:01:10.1]}
19... Bxc5 {[%clk 0:01:15.4]} 20. Qxd5+ {[%clk 0:01:09.9]} 20... Kh7 {[%clk
0:01:01.2]} 21. dxc5 {[%clk 0:01:01.3]} 21... Rd8 {[%clk 0:00:58.5]} 22. Qc4
{[%clk 0:01:01.3]} 22... Red7 {[%clk 0:00:46.3]} 23. b4 {[%clk 0:00:55.9]} 23...
Qc7 {[%clk 0:00:44.1]} 24. Qh4+ {[%clk 0:00:49]} 24... Kg8 {[%clk 0:00:43.7]}
25. Qg4 {[%clk 0:00:49.5]} 25... Kf7 {[%clk 0:00:40.4]} 26. Qc4+ {[%clk
0:00:36.3]} 26... Kf8 {[%clk 0:00:38.9]} 27. Nh4 {[%clk 0:00:32.6]} 27... Ne7
{[%clk 0:00:38.5]} 28. f4 {[%clk 0:00:26.9]} 28... Rd2 {[%clk 0:00:19.8]} 29.
fxe5 {[%clk 0:00:24.4]} 29... g5 {[%clk 0:00:17.3]} 30. exf6 {[%clk 0:00:23.4]}
30... gxf6 {[%clk 0:00:18.2]} 31. Rxe7 {[%clk 0:00:22.6]} 31... Kxe7 {[%clk
0:00:19.1]} 32. Re1+ {[%clk 0:00:13.2]} 32... Kf8 {[%clk 0:00:17.9]} 33. Ng6+
{[%clk 0:00:10]} 33... Kg7 {[%clk 0:00:17.9]} 34. Re7+ {[%clk 0:00:10.9]} 34...
Qxe7 {[%clk 0:00:16.6]} 35. Nxe7 {[%clk 0:00:11.8]} 35... Re8 {[%clk 0:00:15.1]}
36. Nf5+ {[%clk 0:00:11.1]} 36... Kg6 {[%clk 0:00:15.2]} 37. Nd4 {[%clk
0:00:10.4]} 37... Re1+ {[%clk 0:00:13.4]} 38. Kh2 {[%clk 0:00:10.1]} 38... Rc1
{[%clk 0:00:14.3]} 39. Qg8+ {[%clk 0:00:09.4]} 39... Kh6 {[%clk 0:00:13.8]} 40.
Qh8+ {[%clk 0:00:08.5]} 40... Kg6 {[%clk 0:00:13.9]} 41. Qe8+ {[%clk 0:00:08.4]}
41... Kg7 {[%clk 0:00:12.3]} 42. Qe7+ {[%clk 0:00:07.4]} 42... Kg6 {[%clk
0:00:11.7]} 43. Qe8+ {[%clk 0:00:07.6]} 43... Kh7 {[%clk 0:00:10.9]} 44. Qf7+
{[%clk 0:00:07]} 44... Kh8 {[%clk 0:00:11.4]} 45. Nf5 {[%clk 0:00:05]} 1-0

[Event "*** SCC Grand Prix: Titled Tuesday Blitz"]
[Site "Chess.com"]
[Date "2020.07.14"]
[Round "7"]
[White "xberli"]
[Black "karinachess1"]
[Result "0-1"]
[WhiteElo "2312"]
[BlackElo "2526"]
[TimeControl "180+1"]
[EndTime "11:20:42 PDT"]
[Termination "karinachess1 won on time"]

1. e4 {[%clk 0:03:00.9]} 1... c5 {[%clk 0:02:58.6]} 2. Nf3 {[%clk 0:03:00.5]}
2... e6 {[%clk 0:02:58.9]} 3. d4 {[%clk 0:03:00.5]} 3... cxd4 {[%clk 0:02:59.8]}
4. Nxd4 {[%clk 0:03:01.3]} 4... a6 {[%clk 0:03:00.4]} 5. c4 {[%clk 0:03:01.2]}
5... Nf6 {[%clk 0:02:59.4]} 6. Nc3 {[%clk 0:02:59.1]} 6... Bb4 {[%clk
0:02:58.5]} 7. Nc2 {[%clk 0:02:46.9]} 7... Bxc3+ {[%clk 0:02:01.6]} 8. bxc3
{[%clk 0:02:47.8]} 8... Nxe4 {[%clk 0:01:57.6]} 9. Qd4 {[%clk 0:02:29]} 9... Nf6
{[%clk 0:01:49.3]} 10. Ba3 {[%clk 0:02:28.6]} 10... Nc6 {[%clk 0:01:49.6]} 11.
Qd6 {[%clk 0:02:23]} 11... Ne4 {[%clk 0:01:23.5]} 12. Qd3 {[%clk 0:02:12.8]}
12... f5 {[%clk 0:01:23.6]} 13. Be2 {[%clk 0:02:08.3]} 13... Qf6 {[%clk
0:01:16.6]} 14. Nd4 {[%clk 0:01:59.8]} 14... Nxc3 {[%clk 0:00:57.7]} 15. Nxc6
{[%clk 0:01:45.7]} 15... Nxe2 {[%clk 0:00:57.3]} 16. Kxe2 {[%clk 0:01:38.4]}
16... bxc6 {[%clk 0:00:56.5]} 17. Qd6 {[%clk 0:01:29.9]} 17... Kf7 {[%clk
0:00:46.8]} 18. Rhd1 {[%clk 0:01:25.7]} 18... a5 {[%clk 0:00:39.6]} 19. Rab1
{[%clk 0:01:24.1]} 19... Re8 {[%clk 0:00:38]} 20. Kf1 {[%clk 0:01:15]} 20... Ba6
{[%clk 0:00:34.3]} 21. Qxd7+ {[%clk 0:01:11.3]} 21... Kg8 {[%clk 0:00:34.9]} 22.
Rdc1 {[%clk 0:00:56.7]} 22... e5 {[%clk 0:00:18.7]} 23. Kg1 {[%clk 0:00:48.3]}
23... Rad8 {[%clk 0:00:17.4]} 24. Qc7 {[%clk 0:00:46.3]} 24... Bc8 {[%clk
0:00:15.9]} 25. Qxa5 {[%clk 0:00:45]} 25... e4 {[%clk 0:00:15.8]} 26. Bb2 {[%clk
0:00:41.5]} 26... Qg6 {[%clk 0:00:16]} 27. Be5 {[%clk 0:00:34.9]} 27... Be6
{[%clk 0:00:12.3]} 28. Bf4 {[%clk 0:00:32]} 28... Bf7 {[%clk 0:00:11.9]} 29. Qc5
{[%clk 0:00:27.6]} 29... Qg4 {[%clk 0:00:11.2]} 30. Bc7 {[%clk 0:00:19.9]} 30...
Rc8 {[%clk 0:00:10.6]} 31. Qd6 {[%clk 0:00:17.1]} 31... e3 {[%clk 0:00:07]} 32.
fxe3 {[%clk 0:00:16.4]} 32... Rxe3 {[%clk 0:00:07.1]} 33. a4 {[%clk 0:00:15]}
33... Rce8 {[%clk 0:00:07]} 34. Rb8 {[%clk 0:00:13.9]} 34... Re2 {[%clk
0:00:06.6]} 35. Rxe8+ {[%clk 0:00:12.7]} 35... Bxe8 {[%clk 0:00:07.5]} 36. Qg3
{[%clk 0:00:11.8]} 36... Qe4 {[%clk 0:00:07.8]} 37. a5 {[%clk 0:00:10.3]} 37...
c5 {[%clk 0:00:07.2]} 38. Qf3 {[%clk 0:00:09.7]} 38... Qe6 {[%clk 0:00:05.9]}
39. Qd5 {[%clk 0:00:08.1]} 39... Bc6 {[%clk 0:00:04.7]} 40. Qxe6+ {[%clk
0:00:07.7]} 40... Rxe6 {[%clk 0:00:05.6]} 41. Bb6 {[%clk 0:00:07.4]} 41... Re2
{[%clk 0:00:05.6]} 42. a6 {[%clk 0:00:07.1]} 42... Rxg2+ {[%clk 0:00:06]} 43.
Kf1 {[%clk 0:00:07.5]} 43... Rxh2 {[%clk 0:00:06]} 44. Re1 {[%clk 0:00:06.5]}
44... Ra2 {[%clk 0:00:05.3]} 45. a7 {[%clk 0:00:06.2]} 45... Kf7 {[%clk
0:00:05.2]} 46. Bxc5 {[%clk 0:00:06.1]} 46... Be4 {[%clk 0:00:05.6]} 47. Rd1
{[%clk 0:00:05.6]} 47... g5 {[%clk 0:00:05.8]} 48. Rd7+ {[%clk 0:00:05.5]} 48...
Kg6 {[%clk 0:00:06.3]} 49. Rd6+ {[%clk 0:00:04.9]} 49... Kh5 {[%clk 0:00:06.6]}
50. Rd7 {[%clk 0:00:04.7]} 50... f4 {[%clk 0:00:06.6]} 51. Re7 {[%clk
0:00:03.8]} 51... Bd3+ {[%clk 0:00:06.8]} 52. Kg1 {[%clk 0:00:03.2]} 52... Kg4
{[%clk 0:00:07.1]} 53. Re1 {[%clk 0:00:02.3]} 53... Kg3 {[%clk 0:00:06.8]} 54.
Rd1 {[%clk 0:00:02]} 54... Bxc4 {[%clk 0:00:05.9]} 0-1

[Event "*** SCC Grand Prix: Titled Tuesday Blitz"]
[Site "Chess.com"]
[Date "2020.07.14"]
[Round "7"]
[White "mattcolins2025"]
[Black "Quiet_Desperation"]
[Result "0-1"]
[WhiteElo "2382"]
[BlackElo "2242"]
[TimeControl "180+1"]
[EndTime "11:20:44 PDT"]
[Termination "Quiet_Desperation won on time"]

1. d4 {[%clk 0:03:00.9]} 1... d5 {[%clk 0:02:59.3]} 2. c4 {[%clk 0:03:01.2]}
2... c6 {[%clk 0:02:59.2]} 3. Nc3 {[%clk 0:03:01.6]} 3... Nf6 {[%clk 0:02:59.7]}
4. Nf3 {[%clk 0:03:01.9]} 4... dxc4 {[%clk 0:02:59.6]} 5. a4 {[%clk 0:03:02]}
5... Bf5 {[%clk 0:02:59.5]} 6. Ne5 {[%clk 0:03:01.6]} 6... e6 {[%clk 0:02:59.5]}
7. Nxc4 {[%clk 0:02:58.8]} 7... Nbd7 {[%clk 0:02:59.2]} 8. f3 {[%clk 0:02:58.5]}
8... Bb4 {[%clk 0:02:58.1]} 9. Qb3 {[%clk 0:02:56.9]} 9... a5 {[%clk 0:02:51.2]}
10. Bd2 {[%clk 0:02:55.2]} 10... O-O {[%clk 0:02:50.9]} 11. e4 {[%clk 0:02:49]}
11... Bg6 {[%clk 0:02:48.4]} 12. Bd3 {[%clk 0:02:47.4]} 12... Nc5 {[%clk
0:02:42.5]} 13. dxc5 {[%clk 0:02:33.6]} 13... Qxd3 {[%clk 0:02:42]} 14. Nb6
{[%clk 0:02:21.5]} 14... Rad8 {[%clk 0:02:29.2]} 15. Rd1 {[%clk 0:02:20.6]}
15... Bxc5 {[%clk 0:02:09]} 16. Nc4 {[%clk 0:02:19.4]} 16... Qd7 {[%clk
0:01:52]} 17. Nxa5 {[%clk 0:02:03.5]} 17... Qd4 {[%clk 0:01:49]} 18. Rf1 {[%clk
0:01:58.6]} 18... Qe5 {[%clk 0:01:26.8]} 19. g3 {[%clk 0:01:51.9]} 19... Qh5
{[%clk 0:01:22.7]} 20. Bf4 {[%clk 0:01:38.9]} 20... Rxd1+ {[%clk 0:01:10.2]} 21.
Nxd1 {[%clk 0:01:38.3]} 21... Qxh2 {[%clk 0:01:10.1]} 22. Nxb7 {[%clk
0:01:30.5]} 22... Ba7 {[%clk 0:01:02.7]} 23. Bd6 {[%clk 0:00:53.8]} 23... Re8
{[%clk 0:00:56.6]} 24. Nf2 {[%clk 0:00:45.5]} 24... e5 {[%clk 0:00:46.7]} 25.
Bc5 {[%clk 0:00:28.3]} 25... Bxc5 {[%clk 0:00:43.3]} 26. Nxc5 {[%clk 0:00:29.2]}
26... Qxg3 {[%clk 0:00:41.5]} 27. a5 {[%clk 0:00:20.4]} 27... Qg5 {[%clk
0:00:31.7]} 28. Ke2 {[%clk 0:00:18.2]} 28... Nh5 {[%clk 0:00:30.5]} 29. Ncd3
{[%clk 0:00:15.3]} 29... Ng3+ {[%clk 0:00:29.8]} 30. Kd1 {[%clk 0:00:12.6]}
30... Nxf1 {[%clk 0:00:29.2]} 31. f4 {[%clk 0:00:12.4]} 31... exf4 {[%clk
0:00:24.8]} 32. a6 {[%clk 0:00:12.9]} 32... f3 {[%clk 0:00:24.7]} 33. Qc3 {[%clk
0:00:09.8]} 33... Ne3+ {[%clk 0:00:17.2]} 34. Kc1 {[%clk 0:00:08.9]} 34... Nd5+
{[%clk 0:00:15.7]} 35. Qd2 {[%clk 0:00:09.4]} 35... Qxd2+ {[%clk 0:00:15.8]} 36.
Kxd2 {[%clk 0:00:10.3]} 36... Nb6 {[%clk 0:00:15.9]} 37. Kc3 {[%clk 0:00:09.5]}
37... Ra8 {[%clk 0:00:15.6]} 38. Nc5 {[%clk 0:00:09.1]} 38... h5 {[%clk
0:00:13.5]} 39. Kb4 {[%clk 0:00:09]} 39... h4 {[%clk 0:00:13.9]} 40. Ka5 {[%clk
0:00:09.3]} 40... Nc4+ {[%clk 0:00:14.2]} 41. Kb4 {[%clk 0:00:09.1]} 41... Nd6
{[%clk 0:00:14.1]} 42. e5 {[%clk 0:00:08.3]} 42... Nc8 {[%clk 0:00:13.5]} 43.
Ka5 {[%clk 0:00:06.4]} 43... Bf5 {[%clk 0:00:13.8]} 44. b4 {[%clk 0:00:06.3]}
44... h3 {[%clk 0:00:14.2]} 45. b5 {[%clk 0:00:05.1]} 45... cxb5 {[%clk
0:00:13.9]} 46. Kxb5 {[%clk 0:00:06]} 46... h2 {[%clk 0:00:14.3]} 47. Kc6 {[%clk
0:00:05.6]} 47... Bh3 {[%clk 0:00:12.9]} 48. Kb7 {[%clk 0:00:05.1]} 48... Rxa6
{[%clk 0:00:13.1]} 49. Kxa6 {[%clk 0:00:04]} 49... Bg2 {[%clk 0:00:12.8]} 50.
Kb7 {[%clk 0:00:04.4]} 50... Ne7 {[%clk 0:00:12.9]} 51. Kc7 {[%clk 0:00:04.3]}
51... h1=Q {[%clk 0:00:13.3]} 52. Nxh1 {[%clk 0:00:04.9]} 52... Bxh1 {[%clk
0:00:14.2]} 53. Kd7 {[%clk 0:00:05.5]} 53... f2 {[%clk 0:00:14.4]} 54. Kxe7
{[%clk 0:00:05]} 54... f1=Q {[%clk 0:00:14.8]} 55. Nd7 {[%clk 0:00:04.5]} 55...
Qc4 {[%clk 0:00:13.8]} 56. Kd8 {[%clk 0:00:03.6]} 56... Qe6 {[%clk 0:00:13.6]}
57. Kc7 {[%clk 0:00:02.6]} 57... Bc6 {[%clk 0:00:12.8]} 58. Nc5 {[%clk
0:00:01.8]} 58... Qxe5+ {[%clk 0:00:12.6]} 0-1